[Event "*** Titled Tuesday 3|2 Blitz"]
[Site "Chess.com"]
[Date "2017.03.07"]
[Round "1"]
[White "rpragchess"]
[Black "manubibi"]
[Result "0-1"]
[WhiteElo "1196"]
[BlackElo "2404"]
[TimeControl "180+2"]
[EndTime "13:10:15 PST"]
[Termination "manubibi won by checkmate"]

1. e4 {[%clk 0:03:02]} 1... c5 {[%clk 0:02:59.9]} 2. Nf3 {[%clk 0:02:19.6]} 2...
d6 {[%clk 0:03:00.6]} 3. d4 {[%clk 0:02:13.8]} 3... cxd4 {[%clk 0:03:00.6]} 4.
Nxd4 {[%clk 0:02:14.2]} 4... Nf6 {[%clk 0:03:01.8]} 5. Nc3 {[%clk 0:02:15.7]}
5... a6 {[%clk 0:02:59.7]} 6. Bg5 {[%clk 0:02:16]} 6... e6 {[%clk 0:02:56.8]} 7.
f4 {[%clk 0:02:16]} 7... h6 {[%clk 0:02:53.1]} 8. Bh4 {[%clk 0:02:15.9]} 8...
Be7 {[%clk 0:02:54.4]} 9. Qf3 {[%clk 0:02:13.7]} 9... Nc6 {[%clk 0:02:52.2]} 10.
O-O-O {[%clk 0:01:49.3]} 10... Qc7 {[%clk 0:02:42]} 11. Kb1 {[%clk 0:01:29.8]}
11... Bd7 {[%clk 0:02:39.7]} 12. g4 {[%clk 0:01:20.5]} 12... Rc8 {[%clk
0:02:38.5]} 13. Bxf6 {[%clk 0:00:59.8]} 13... Bxf6 {[%clk 0:02:38.6]} 14. Ndb5
{[%clk 0:00:58.2]} 14... axb5 {[%clk 0:02:36.4]} 15. Nxb5 {[%clk 0:00:58.9]}
15... Qb8 {[%clk 0:01:50.8]} 16. Nxd6+ {[%clk 0:00:58.4]} 16... Kf8 {[%clk
0:01:52.1]} 17. e5 {[%clk 0:00:38.9]} 17... Be7 {[%clk 0:01:49.3]} 18. Nxc8
{[%clk 0:00:40]} 18... Qxc8 {[%clk 0:01:51.2]} 19. Bd3 {[%clk 0:00:35.3]} 19...
g6 {[%clk 0:01:50.2]} 20. h4 {[%clk 0:00:34.4]} 20... Kg7 {[%clk 0:01:50.4]} 21.
Qe4 {[%clk 0:00:33.1]} 21... Rd8 {[%clk 0:01:45.2]} 22. h5 {[%clk 0:00:33.3]}
22... Be8 {[%clk 0:01:44.5]} 23. hxg6 {[%clk 0:00:31.1]} 23... fxg6 {[%clk
0:01:44.3]} 24. f5 {[%clk 0:00:31.4]} 24... exf5 {[%clk 0:01:43.4]} 25. gxf5
{[%clk 0:00:31.6]} 25... Qxf5 {[%clk 0:01:45]} 26. Qg2 {[%clk 0:00:21.7]} 26...
Qg5 {[%clk 0:01:42.1]} 27. Qe2 {[%clk 0:00:22.7]} 27... Qxe5 {[%clk 0:01:40]}
28. Qf2 {[%clk 0:00:20.5]} 28... Bf6 {[%clk 0:01:39.8]} 29. c3 {[%clk
0:00:20.7]} 29... Rxd3 {[%clk 0:01:38]} 30. Rxd3 {[%clk 0:00:21.1]} 30... Qe4
{[%clk 0:01:39.6]} 31. Rd1 {[%clk 0:00:20.9]} 31... Ne5 {[%clk 0:01:40.7]} 32.
Qe1 {[%clk 0:00:22.2]} 32... Qxe1 {[%clk 0:01:40.8]} 33. Rxe1 {[%clk 0:00:23.9]}
33... Nxd3 {[%clk 0:01:42.2]} 34. Rxe8 {[%clk 0:00:25.5]} 34... h5 {[%clk
0:01:42.6]} 35. Rb8 {[%clk 0:00:26.3]} 35... Nc5 {[%clk 0:01:38.8]} 36. b4
{[%clk 0:00:25.6]} 36... Ne4 {[%clk 0:01:38.5]} 37. Rxb7+ {[%clk 0:00:26.5]}
37... Kh6 {[%clk 0:01:39.9]} 38. c4 {[%clk 0:00:27.5]} 38... Nd2+ {[%clk
0:01:40.9]} 39. Kc2 {[%clk 0:00:27.1]} 39... Nxc4 {[%clk 0:01:42.4]} 40. a4
{[%clk 0:00:18.8]} 40... h4 {[%clk 0:01:43.5]} 41. Rd7 {[%clk 0:00:17.2]} 41...
g5 {[%clk 0:01:29.2]} 42. a5 {[%clk 0:00:16.7]} 42... h3 {[%clk 0:01:29]} 43.
Kb3 {[%clk 0:00:12.8]} 43... Ne3 {[%clk 0:01:20.7]} 44. Rd2 {[%clk 0:00:12.8]}
44... Nf1 {[%clk 0:01:07.2]} 45. Rf2 {[%clk 0:00:12.7]} 45... g4 {[%clk
0:00:38.7]} 46. Rxf6+ {[%clk 0:00:09.8]} 46... Kg5 {[%clk 0:00:38.5]} 47. a6
{[%clk 0:00:10.4]} 47... Nd2+ {[%clk 0:00:30.9]} 48. Kc3 {[%clk 0:00:07.7]}
48... h2 {[%clk 0:00:32.8]} 49. Kxd2 {[%clk 0:00:02.5]} 49... Kxf6 {[%clk
0:00:32.4]} 50. b5 {[%clk 0:00:02.9]} 50... h1=Q {[%clk 0:00:33.4]} 51. b6
{[%clk 0:00:04.2]} 51... Qd5+ {[%clk 0:00:34.1]} 52. Ke1 {[%clk 0:00:04.5]}
52... Qa5+ {[%clk 0:00:34.4]} 53. Kf2 {[%clk 0:00:05.6]} 53... Qxa6 {[%clk
0:00:35.3]} 54. Kg3 {[%clk 0:00:03.3]} 54... Kg5 {[%clk 0:00:35.1]} 55. Kh2
{[%clk 0:00:03.6]} 55... Qxb6 {[%clk 0:00:35.9]} 56. Kh1 {[%clk 0:00:04.3]}
56... Qb2 {[%clk 0:00:36]} 57. Kg1 {[%clk 0:00:04.4]} 57... Kf4 {[%clk
0:00:37.3]} 58. Kf1 {[%clk 0:00:05.9]} 58... Kf3 {[%clk 0:00:38.5]} 59. Kg1
{[%clk 0:00:07.6]} 59... Qg2# {[%clk 0:00:39]} 0-1

[Event "*** Titled Tuesday 3|2 Blitz"]
[Site "Chess.com"]
[Date "2017.03.07"]
[Round "1"]
[White "MateusViageiro"]
[Black "B-man"]
[Result "0-1"]
[WhiteElo "2227"]
[BlackElo "2508"]
[TimeControl "180+2"]
[EndTime "13:10:23 PST"]
[Termination "B-man won by resignation"]

1. d4 {[%clk 0:03:00.6]} 1... e6 {[%clk 0:02:55.7]} 2. Nf3 {[%clk 0:02:59.8]}
2... b6 {[%clk 0:02:56.3]} 3. g3 {[%clk 0:03:00.8]} 3... Bb7 {[%clk 0:02:57.2]}
4. Bg2 {[%clk 0:03:01.9]} 4... f5 {[%clk 0:02:55.1]} 5. O-O {[%clk 0:03:02.6]}
5... Nf6 {[%clk 0:02:56.5]} 6. c4 {[%clk 0:03:02.8]} 6... g6 {[%clk 0:02:54.5]}
7. Nc3 {[%clk 0:03:03.6]} 7... Bg7 {[%clk 0:02:55.9]} 8. Bg5 {[%clk 0:03:02.5]}
8... h6 {[%clk 0:02:53]} 9. Bf4 {[%clk 0:03:01.7]} 9... O-O {[%clk 0:02:52.1]}
10. Rc1 {[%clk 0:03:01.3]} 10... g5 {[%clk 0:02:49.6]} 11. Be5 {[%clk
0:02:51.8]} 11... d6 {[%clk 0:02:36.4]} 12. Bxf6 {[%clk 0:02:52.1]} 12... Qxf6
{[%clk 0:02:38.3]} 13. e3 {[%clk 0:02:52.1]} 13... Nd7 {[%clk 0:02:34.9]} 14. d5
{[%clk 0:02:43.3]} 14... e5 {[%clk 0:02:31.8]} 15. e4 {[%clk 0:02:28.5]} 15...
f4 {[%clk 0:02:28]} 16. Bh3 {[%clk 0:02:20.7]} 16... Bc8 {[%clk 0:02:17.8]} 17.
Be6+ {[%clk 0:02:16.5]} 17... Kh8 {[%clk 0:02:19.2]} 18. Nb5 {[%clk 0:02:17.4]}
18... Qd8 {[%clk 0:02:13.6]} 19. b4 {[%clk 0:02:05.7]} 19... Nf6 {[%clk
0:02:06.9]} 20. Bxc8 {[%clk 0:02:04]} 20... Qxc8 {[%clk 0:02:08.8]} 21. Nd2
{[%clk 0:01:59]} 21... a6 {[%clk 0:02:05.4]} 22. Nc3 {[%clk 0:01:57.5]} 22...
Qh3 {[%clk 0:01:53.9]} 23. Qf3 {[%clk 0:01:57.2]} 23... g4 {[%clk 0:01:47.8]}
24. Qg2 {[%clk 0:01:57.7]} 24... Qh5 {[%clk 0:01:49.3]} 25. f3 {[%clk 0:01:57]}
25... gxf3 {[%clk 0:01:41.1]} 26. Rxf3 {[%clk 0:01:51.2]} 26... Ng4 {[%clk
0:01:40.6]} 27. Nd1 {[%clk 0:01:43.3]} 27... fxg3 {[%clk 0:01:16.5]} 28. hxg3
{[%clk 0:01:34.9]} 28... Bf6 {[%clk 0:01:12.7]} 29. Nf2 {[%clk 0:01:25.5]} 29...
Bg5 {[%clk 0:01:07.2]} 30. Nxg4 {[%clk 0:01:17.3]} 30... Qxg4 {[%clk 0:01:09.1]}
31. Rcf1 {[%clk 0:01:03.9]} 31... Rxf3 {[%clk 0:01:07.7]} 32. Nxf3 {[%clk
0:01:03.8]} 32... Qxe4 {[%clk 0:00:40.5]} 33. Nxg5 {[%clk 0:00:58.8]} 33... Qe3+
{[%clk 0:00:41.6]} 34. Kh2 {[%clk 0:00:42.1]} 34... Qxg5 {[%clk 0:00:41.9]} 35.
Qh3 {[%clk 0:00:41.1]} 35... Rg8 {[%clk 0:00:36.2]} 36. Rf2 {[%clk 0:00:41.3]}
36... Kh7 {[%clk 0:00:29.1]} 37. Rf7+ {[%clk 0:00:38.1]} 37... Rg7 {[%clk
0:00:30.5]} 38. Rxg7+ {[%clk 0:00:34.3]} 38... Qxg7 {[%clk 0:00:32.4]} 39. Qf5+
{[%clk 0:00:34.5]} 39... Kg8 {[%clk 0:00:33]} 40. Qc8+ {[%clk 0:00:34.2]} 40...
Kh7 {[%clk 0:00:33.6]} 41. Qxa6 {[%clk 0:00:34.3]} 41... e4 {[%clk 0:00:31.7]}
42. c5 {[%clk 0:00:20.7]} 42... dxc5 {[%clk 0:00:29.4]} 43. bxc5 {[%clk
0:00:21.8]} 43... bxc5 {[%clk 0:00:27.7]} 44. Qe6 {[%clk 0:00:21]} 44... Qg6
{[%clk 0:00:21]} 45. Qe7+ {[%clk 0:00:21.2]} 45... Kg8 {[%clk 0:00:22]} 46. Qxc7
{[%clk 0:00:21.7]} 46... Qh5+ {[%clk 0:00:20.8]} 47. Kg2 {[%clk 0:00:22.1]}
47... Qe2+ {[%clk 0:00:22.2]} 48. Kh3 {[%clk 0:00:23]} 48... Qf1+ {[%clk
0:00:22.7]} 49. Kh2 {[%clk 0:00:24.1]} 49... Qf2+ {[%clk 0:00:22.4]} 50. Kh3
{[%clk 0:00:24.2]} 50... Qf5+ {[%clk 0:00:22.8]} 51. Kh2 {[%clk 0:00:25.1]}
51... Qxd5 {[%clk 0:00:23.9]} 52. Qc8+ {[%clk 0:00:24.9]} 52... Kf7 {[%clk
0:00:24.1]} 53. Qc7+ {[%clk 0:00:25.5]} 53... Kf6 {[%clk 0:00:24.9]} 54. Qf4+
{[%clk 0:00:25.5]} 54... Ke7 {[%clk 0:00:24.5]} 55. Qxh6 {[%clk 0:00:24.4]}
55... Qxa2+ {[%clk 0:00:25.3]} 56. Kh3 {[%clk 0:00:25.1]} 56... Qe6+ {[%clk
0:00:26.1]} 57. g4 {[%clk 0:00:25.5]} 57... Qxh6+ {[%clk 0:00:25.9]} 58. Kg3
{[%clk 0:00:26.6]} 0-1

[Event "*** Titled Tuesday 3|2 Blitz"]
[Site "Chess.com"]
[Date "2017.03.07"]
[Round "1"]
[White "hsskoo"]
[Black "Divertissement"]
[Result "0-1"]
[WhiteElo "1930"]
[BlackElo "2417"]
[TimeControl "180+2"]
[EndTime "13:10:26 PST"]
[Termination "Divertissement won on time"]

1. e4 {[%clk 0:03:00]} 1... g6 {[%clk 0:02:26]} 2. Nf3 {[%clk 0:03:00.1]} 2...
Bg7 {[%clk 0:02:13.1]} 3. Bc4 {[%clk 0:03:00.2]} 3... c6 {[%clk 0:02:10.4]} 4.
d4 {[%clk 0:02:57]} 4... d5 {[%clk 0:02:11.2]} 5. exd5 {[%clk 0:02:57.3]} 5...
cxd5 {[%clk 0:02:12]} 6. Bb5+ {[%clk 0:02:56.2]} 6... Bd7 {[%clk 0:02:09.6]} 7.
Qe2 {[%clk 0:02:52.9]} 7... Nf6 {[%clk 0:02:10.5]} 8. O-O {[%clk 0:02:51.5]}
8... O-O {[%clk 0:02:09.6]} 9. h3 {[%clk 0:02:49.9]} 9... Nc6 {[%clk 0:02:06.4]}
10. Re1 {[%clk 0:02:41.8]} 10... e6 {[%clk 0:02:01.7]} 11. c3 {[%clk 0:02:36.2]}
11... Ne4 {[%clk 0:01:51.2]} 12. Nbd2 {[%clk 0:02:28.5]} 12... Nd6 {[%clk
0:01:43.3]} 13. Bd3 {[%clk 0:02:24.4]} 13... a6 {[%clk 0:01:35.4]} 14. Nf1
{[%clk 0:02:23.5]} 14... Ne7 {[%clk 0:01:29.4]} 15. Bg5 {[%clk 0:01:56.5]} 15...
f6 {[%clk 0:01:26.9]} 16. Bf4 {[%clk 0:01:48.9]} 16... Nf7 {[%clk 0:01:28.1]}
17. c4 {[%clk 0:01:43.8]} 17... Re8 {[%clk 0:01:26.1]} 18. Rad1 {[%clk
0:01:37.1]} 18... Rc8 {[%clk 0:01:22]} 19. b3 {[%clk 0:01:33.9]} 19... Qa5
{[%clk 0:01:20.5]} 20. Ng3 {[%clk 0:01:29.8]} 20... g5 {[%clk 0:01:01.3]} 21.
Bc1 {[%clk 0:01:28.7]} 21... Ng6 {[%clk 0:01:01]} 22. Nh5 {[%clk 0:01:23.8]}
22... Qc7 {[%clk 0:00:43]} 23. g3 {[%clk 0:01:14.1]} 23... a5 {[%clk 0:00:38.9]}
24. a4 {[%clk 0:01:12.7]} 24... Nd6 {[%clk 0:00:37.7]} 25. h4 {[%clk 0:00:53.9]}
25... g4 {[%clk 0:00:36.3]} 26. Nh2 {[%clk 0:00:53.3]} 26... f5 {[%clk
0:00:34.1]} 27. Qe3 {[%clk 0:00:40.9]} 27... Ne4 {[%clk 0:00:32.9]} 28. Nxg7
{[%clk 0:00:39.5]} 28... Kxg7 {[%clk 0:00:31.6]} 29. Bxe4 {[%clk 0:00:39.4]}
29... dxe4 {[%clk 0:00:31.4]} 30. Qh6+ {[%clk 0:00:39.1]} 30... Kg8 {[%clk
0:00:32.9]} 31. h5 {[%clk 0:00:39.4]} 31... Nh8 {[%clk 0:00:32.4]} 32. Bb2
{[%clk 0:00:32.2]} 32... Nf7 {[%clk 0:00:31.6]} 33. d5 {[%clk 0:00:25.8]} 33...
Nxh6 {[%clk 0:00:31.9]} 34. d6 {[%clk 0:00:23.5]} 34... Qb6 {[%clk 0:00:32]} 35.
Nf1 {[%clk 0:00:23.3]} 35... Qxb3 {[%clk 0:00:33.2]} 36. Be5 {[%clk 0:00:19.3]}
36... Rc5 {[%clk 0:00:30.8]} 37. Bf4 {[%clk 0:00:18.3]} 37... Nf7 {[%clk
0:00:32]} 38. Ne3 {[%clk 0:00:17.4]} 38... e5 {[%clk 0:00:33.5]} 39. Nd5 {[%clk
0:00:13.1]} 39... Rxd5 {[%clk 0:00:32.3]} 40. Rxd5 {[%clk 0:00:07]} 40... exf4
{[%clk 0:00:25.5]} 41. gxf4 {[%clk 0:00:07.3]} 41... g3 {[%clk 0:00:24.5]} 42.
fxg3 {[%clk 0:00:04.5]} 42... Qxg3+ {[%clk 0:00:25.1]} 0-1

[Event "*** Titled Tuesday 3|2 Blitz"]
[Site "Chess.com"]
[Date "2017.03.07"]
[Round "1"]
[White "IMcoach"]
[Black "VSERGUEI"]
[Result "1-0"]
[WhiteElo "2324"]
[BlackElo "2567"]
[TimeControl "180+2"]
[EndTime "13:10:27 PST"]
[Termination "IMcoach won on time"]

1. e4 {[%clk 0:03:01.9]} 1... e6 {[%clk 0:03:00.9]} 2. d3 {[%clk 0:02:56.2]}
2... d5 {[%clk 0:03:01.7]} 3. Qe2 {[%clk 0:02:56.5]} 3... Nf6 {[%clk 0:03:02.1]}
4. e5 {[%clk 0:02:52.7]} 4... Nfd7 {[%clk 0:03:02.4]} 5. f4 {[%clk 0:02:54.3]}
5... c5 {[%clk 0:03:03]} 6. Nf3 {[%clk 0:02:55.9]} 6... b5 {[%clk 0:03:03.4]} 7.
g3 {[%clk 0:02:52.9]} 7... Nc6 {[%clk 0:03:03.6]} 8. Bg2 {[%clk 0:02:54.3]} 8...
a5 {[%clk 0:03:04.1]} 9. O-O {[%clk 0:02:52.2]} 9... Nb6 {[%clk 0:03:04.3]} 10.
Nc3 {[%clk 0:02:47.4]} 10... b4 {[%clk 0:03:02.4]} 11. Nd1 {[%clk 0:02:47.5]}
11... Be7 {[%clk 0:02:59.1]} 12. Nf2 {[%clk 0:02:48.3]} 12... Qc7 {[%clk
0:02:55.2]} 13. Be3 {[%clk 0:02:39]} 13... Bd7 {[%clk 0:02:51.9]} 14. c3 {[%clk
0:02:35.1]} 14... a4 {[%clk 0:02:45.4]} 15. c4 {[%clk 0:02:35.4]} 15... O-O
{[%clk 0:02:41.2]} 16. Rac1 {[%clk 0:02:26.6]} 16... Rfd8 {[%clk 0:02:35.1]} 17.
h4 {[%clk 0:02:10.6]} 17... a3 {[%clk 0:02:31.1]} 18. b3 {[%clk 0:02:10.9]}
18... Be8 {[%clk 0:02:26.1]} 19. h5 {[%clk 0:02:07.8]} 19... dxc4 {[%clk
0:02:18.4]} 20. dxc4 {[%clk 0:02:07.1]} 20... Nd4 {[%clk 0:02:14.9]} 21. Bxd4
{[%clk 0:01:48]} 21... cxd4 {[%clk 0:02:15.2]} 22. Nd3 {[%clk 0:01:46.1]} 22...
h6 {[%clk 0:02:08.8]} 23. Nd2 {[%clk 0:01:34.6]} 23... Rac8 {[%clk 0:02:04.6]}
24. Ne4 {[%clk 0:01:35.5]} 24... Bc6 {[%clk 0:02:01.6]} 25. Nd2 {[%clk
0:01:23.8]} 25... Nd7 {[%clk 0:01:58.6]} 26. Bxc6 {[%clk 0:01:20.9]} 26... Qxc6
{[%clk 0:01:59]} 27. Ne4 {[%clk 0:01:21.9]} 27... Nc5 {[%clk 0:01:47.7]} 28.
Nexc5 {[%clk 0:01:13.8]} 28... Bxc5 {[%clk 0:01:47.7]} 29. Rce1 {[%clk
0:01:13.7]} 29... Rd7 {[%clk 0:01:34]} 30. Qg2 {[%clk 0:01:11.7]} 30... Qb6
{[%clk 0:01:29.6]} 31. Qe4 {[%clk 0:01:11.6]} 31... Bf8 {[%clk 0:01:24.8]} 32.
Re2 {[%clk 0:01:12.4]} 32... Rcd8 {[%clk 0:01:24.5]} 33. Rg2 {[%clk 0:01:12.7]}
33... Kh8 {[%clk 0:01:23.2]} 34. g4 {[%clk 0:01:14]} 34... Qb7 {[%clk
0:01:19.6]} 35. Qxb7 {[%clk 0:01:08]} 35... Rxb7 {[%clk 0:01:19.9]} 36. Kf2
{[%clk 0:00:54.3]} 36... f6 {[%clk 0:01:18.7]} 37. Kf3 {[%clk 0:00:52.4]} 37...
Rf7 {[%clk 0:01:10.7]} 38. exf6 {[%clk 0:00:50.9]} 38... gxf6 {[%clk 0:01:09.1]}
39. Re1 {[%clk 0:00:43.8]} 39... e5 {[%clk 0:01:05.4]} 40. fxe5 {[%clk
0:00:23.6]} 40... fxe5+ {[%clk 0:01:05]} 41. Ke4 {[%clk 0:00:25]} 41... Bg7
{[%clk 0:01:04.5]} 42. g5 {[%clk 0:00:23]} 42... Rdf8 {[%clk 0:00:34.6]} 43.
gxh6 {[%clk 0:00:22.9]} 43... Bf6 {[%clk 0:00:25.5]} 44. Rg6 {[%clk 0:00:21]}
44... Kh7 {[%clk 0:00:24.2]} 45. Rf1 {[%clk 0:00:21.1]} 45... Bh8 {[%clk
0:00:22.1]} 46. Rxf7+ {[%clk 0:00:21.7]} 46... Rxf7 {[%clk 0:00:22.7]} 47. c5
{[%clk 0:00:20.3]} 47... Rf1 {[%clk 0:00:16.7]} 48. c6 {[%clk 0:00:21.1]} 48...
Rf7 {[%clk 0:00:15.1]} 49. Nxb4 {[%clk 0:00:18.7]} 49... Rf4+ {[%clk 0:00:15]}
50. Kd5 {[%clk 0:00:17.7]} 50... d3 {[%clk 0:00:16]} 51. Nxd3 {[%clk 0:00:18.2]}
51... Rd4+ {[%clk 0:00:17]} 52. Ke6 {[%clk 0:00:17.6]} 52... Rxd3 {[%clk
0:00:17.8]} 53. c7 {[%clk 0:00:19]} 53... Rc3 {[%clk 0:00:16.6]} 54. Kd7 {[%clk
0:00:20]} 54... e4 {[%clk 0:00:16.4]} 55. c8=Q {[%clk 0:00:19.6]} 55... Rxc8
{[%clk 0:00:16.7]} 56. Kxc8 {[%clk 0:00:21.5]} 56... e3 {[%clk 0:00:15.8]} 57.
Re6 {[%clk 0:00:22.5]} 57... Bd4 {[%clk 0:00:16.8]} 58. Re4 {[%clk 0:00:23.4]}
58... Bb2 {[%clk 0:00:15.6]} 59. Rxe3 {[%clk 0:00:23.6]} 59... Kxh6 {[%clk
0:00:17.1]} 60. Rh3 {[%clk 0:00:24.2]} 60... Bc3 {[%clk 0:00:16.7]} 61. Rxc3
{[%clk 0:00:23.8]} 1-0

[Event "*** Titled Tuesday 3|2 Blitz"]
[Site "Chess.com"]
[Date "2017.03.07"]
[Round "1"]
[White "igorkovalenko"]
[Black "TheNextLevelFan"]
[Result "1-0"]
[WhiteElo "2679"]
[BlackElo "2358"]
[TimeControl "180+2"]
[EndTime "13:11:18 PST"]
[Termination "igorkovalenko won by resignation"]

1. e4 {[%clk 0:03:02]} 1... e5 {[%clk 0:02:35.2]} 2. Nf3 {[%clk 0:03:01]} 2...
Nc6 {[%clk 0:02:35.6]} 3. Bb5 {[%clk 0:03:01.5]} 3... a6 {[%clk 0:02:35.5]} 4.
Ba4 {[%clk 0:03:00.5]} 4... Nf6 {[%clk 0:02:36.1]} 5. d3 {[%clk 0:03:01.2]} 5...
d6 {[%clk 0:02:34.4]} 6. c4 {[%clk 0:03:01.5]} 6... Be7 {[%clk 0:02:29.8]} 7. h3
{[%clk 0:03:02.5]} 7... O-O {[%clk 0:02:30.3]} 8. Be3 {[%clk 0:03:02.8]} 8... h6
{[%clk 0:02:27]} 9. Nc3 {[%clk 0:03:03.8]} 9... Be6 {[%clk 0:02:24.1]} 10. Qd2
{[%clk 0:02:54.4]} 10... Nh7 {[%clk 0:02:19.9]} 11. Nd5 {[%clk 0:02:48.2]} 11...
f5 {[%clk 0:02:08.9]} 12. exf5 {[%clk 0:02:48.8]} 12... Bxf5 {[%clk 0:02:06.5]}
13. Bb3 {[%clk 0:02:44.3]} 13... Kh8 {[%clk 0:02:05]} 14. d4 {[%clk 0:02:43.4]}
14... e4 {[%clk 0:01:59.3]} 15. Ng1 {[%clk 0:02:42.6]} 15... Bg5 {[%clk
0:01:59.7]} 16. O-O-O {[%clk 0:02:40.9]} 16... b5 {[%clk 0:01:51.4]} 17. cxb5
{[%clk 0:02:41.3]} 17... axb5 {[%clk 0:01:51.2]} 18. Ne2 {[%clk 0:02:41.6]}
18... Na5 {[%clk 0:01:50.9]} 19. Nec3 {[%clk 0:02:34.2]} 19... c6 {[%clk
0:01:45.5]} 20. Bxg5 {[%clk 0:02:34.5]} 20... Nxg5 {[%clk 0:01:44.8]} 21. Ne3
{[%clk 0:02:35.9]} 21... Nxb3+ {[%clk 0:01:37.7]} 22. axb3 {[%clk 0:02:37.8]}
22... Be6 {[%clk 0:01:38.2]} 23. Kc2 {[%clk 0:02:37.9]} 23... Qd7 {[%clk
0:01:24.9]} 24. Ra1 {[%clk 0:02:37.4]} 24... Qf7 {[%clk 0:01:21.4]} 25. d5
{[%clk 0:02:35.8]} 25... cxd5 {[%clk 0:01:21.8]} 26. Rxa8 {[%clk 0:02:33.8]}
26... Rxa8 {[%clk 0:01:21.1]} 27. Nxb5 {[%clk 0:02:35.3]} 27... d4 {[%clk
0:01:13.8]} 28. Nxd4 {[%clk 0:02:36.2]} 28... Rb8 {[%clk 0:01:15]} 29. Ra1
{[%clk 0:02:34.6]} 29... Bxb3+ {[%clk 0:01:15.3]} 30. Nxb3 {[%clk 0:02:33.6]}
30... Qxb3+ {[%clk 0:01:14.5]} 31. Kb1 {[%clk 0:02:35.5]} 31... Ne6 {[%clk
0:01:09.7]} 32. Ra7 {[%clk 0:02:31.3]} 32... Nc5 {[%clk 0:01:07.3]} 33. Qd4
{[%clk 0:02:30.7]} 33... Qd3+ {[%clk 0:01:08.3]} 34. Qxd3 {[%clk 0:02:31.9]}
34... Nxd3 {[%clk 0:01:09.5]} 35. Nd1 {[%clk 0:02:31.8]} 35... Rf8 {[%clk
0:01:06.3]} 36. Re7 {[%clk 0:02:25.2]} 36... d5 {[%clk 0:01:05]} 37. Kc2 {[%clk
0:02:20.2]} 37... Nxf2 {[%clk 0:01:03.6]} 38. Nc3 {[%clk 0:02:21.8]} 38... Rd8
{[%clk 0:00:59]} 39. Re5 {[%clk 0:02:23.1]} 39... Nd3 {[%clk 0:00:59.4]} 40. Rf5
{[%clk 0:02:22.6]} 40... Rb8 {[%clk 0:00:52.4]} 41. Nxd5 {[%clk 0:02:18.5]}
41... Rxb2+ {[%clk 0:00:52.3]} 42. Kc3 {[%clk 0:02:20.2]} 42... Rxg2 {[%clk
0:00:52.9]} 43. Kd4 {[%clk 0:02:21.3]} 43... Rg3 {[%clk 0:00:47.1]} 44. h4
{[%clk 0:02:18.6]} 44... Kh7 {[%clk 0:00:41.7]} 45. Rf7 {[%clk 0:02:14.4]} 45...
Kg6 {[%clk 0:00:38.1]} 46. Re7 {[%clk 0:02:15.3]} 46... Nf2 {[%clk 0:00:38.4]}
47. Ke5 {[%clk 0:02:10.1]} 47... Kh5 {[%clk 0:00:37.3]} 48. Rf7 {[%clk
0:02:07.8]} 48... Kxh4 {[%clk 0:00:36.8]} 49. Rxf2 {[%clk 0:02:08.4]} 49... e3
{[%clk 0:00:31.5]} 50. Re2 {[%clk 0:02:09.8]} 50... g5 {[%clk 0:00:32.2]} 51.
Nxe3 {[%clk 0:02:10.5]} 51... Rf3 {[%clk 0:00:31.7]} 52. Nf5+ {[%clk 0:02:03.4]}
52... Kg4 {[%clk 0:00:29.2]} 53. Nxh6+ {[%clk 0:02:02.4]} 53... Kh3 {[%clk
0:00:30.4]} 54. Re4 {[%clk 0:01:51.4]} 54... Rf4 {[%clk 0:00:27.4]} 55. Re3+
{[%clk 0:01:51.2]} 55... Kg2 {[%clk 0:00:25.9]} 56. Nf5 {[%clk 0:01:45]} 56...
Rf3 {[%clk 0:00:26.6]} 57. Re4 {[%clk 0:01:44.5]} 57... Kh3 {[%clk 0:00:26]} 58.
Nh6 {[%clk 0:01:34.9]} 58... Rf4 {[%clk 0:00:26.1]} 59. Re3+ {[%clk 0:01:36.4]}
59... Kg2 {[%clk 0:00:26.6]} 60. Nf5 {[%clk 0:01:37.6]} 60... Rf3 {[%clk
0:00:25.1]} 61. Re2+ {[%clk 0:01:36]} 61... Kh3 {[%clk 0:00:25.7]} 62. Nd4
{[%clk 0:01:33.4]} 62... Rf4 {[%clk 0:00:24]} 63. Ne6 {[%clk 0:01:33.6]} 63...
Rg4 {[%clk 0:00:22.7]} 64. Kf5 {[%clk 0:01:33.1]} 64... Ra4 {[%clk 0:00:20.4]}
65. Nxg5+ {[%clk 0:01:26.6]} 65... Kg3 {[%clk 0:00:21.5]} 66. Re3+ {[%clk
0:01:25.8]} 66... Kf2 {[%clk 0:00:22]} 67. Rb3 {[%clk 0:01:26.6]} 67... Kg2
{[%clk 0:00:22.8]} 68. Ne4 {[%clk 0:01:25.2]} 68... Ra8 {[%clk 0:00:22.2]} 69.
Rg3+ {[%clk 0:01:21]} 69... Kh2 {[%clk 0:00:22.3]} 70. Kf4 {[%clk 0:01:20.2]}
70... Rf8+ {[%clk 0:00:22.6]} 71. Ke3 {[%clk 0:01:21.7]} 71... Re8 {[%clk
0:00:22.9]} 72. Rg6 {[%clk 0:01:19.9]} 72... Rf8 {[%clk 0:00:23.5]} 73. Nf6
{[%clk 0:01:20.5]} 73... Ra8 {[%clk 0:00:23.9]} 74. Ne4 {[%clk 0:01:18.4]} 74...
Rf8 {[%clk 0:00:24]} 75. Ng5 {[%clk 0:01:14.3]} 75... Kh1 {[%clk 0:00:22.6]} 76.
Ke2 {[%clk 0:01:05.4]} 76... Kh2 {[%clk 0:00:22.2]} 77. Nf3+ {[%clk 0:01:06.4]}
77... Kh3 {[%clk 0:00:22]} 78. Kf2 {[%clk 0:01:07.9]} 78... Rg8 {[%clk 0:00:22]}
79. Ng1+ {[%clk 0:01:09.1]} 1-0